fUSD/lending_fUSD_20240109
["ID","MTS","AMOUNT","RATE_DAILY","PERIOD"]
[310991961,1704843042528,-278.28,0.00040398,2]
[310991964,1704843042538,-153.84,0.00040412,2]
[310991966,1704843042548,-7062.86,0.00040415,2]
[310991968,1704843042557,-150.0,0.00040427,2]
[310991970,1704843042567,-456.4011,0.00040448,8]
[310991973,1704843042576,-150.0,0.00040481,2]
[310991976,1704843042585,-1393.742,0.00040481,2]
[310991979,1704843042595,-189.214,0.00040481,2]
[310991982,1704843042604,-2899.0,0.00040481,2]
[310991985,1704843042613,-2268.0,0.00040481,2]
[310991987,1704843042623,-1152.982,0.00040481,2]
[310991989,1704843042632,-375.406,0.00040481,2]
[310991991,1704843042641,-684.707,0.00040481,2]
[310991993,1704843042650,-944.0,0.00040481,2]
[310991995,1704843042659,-1027.0,0.00040481,2]
[310991997,1704843042668,-171.708,0.00040481,2]
[310991999,1704843042677,-1258.654,0.00040481,2]
[310992001,1704843042687,-272.766,0.00040481,2]
[310992003,1704843042696,-150.0,0.00040497,2]
[310992006,1704843042706,-203.0,0.00040506,24]
[310992009,1704843042716,-500.0,0.00040517,2]
[310992012,1704843042726,-456.4011,0.00040548,8]
[310992015,1704843042735,-150.0,0.00040551,2]
[310992018,1704843042745,-4535.07,0.00040575,5]
[310992020,1704843042757,-689.995148,0.00040578,2]
[310992022,1704843042767,-157.47643918,0.00040593,7]
[310992024,1704843042778,-500.0,0.000406,3]
[310992026,1704843042788,-586.032175,0.00040626,2]
[310992028,1704843042797,-290.41,0.00040627,2]
[310992030,1704843042807,-456.4011,0.00040648,8]
[310992032,1704843042816,-4896.50366981,0.00040684,2]
[310992034,1704843042825,-9664.09195048,0.00040684,2]
[310992036,1704843042835,-150.0,0.00040743,2]
[310992038,1704843042844,-456.4011,0.00040748,8]
[310992040,1704843042854,-150.0,0.00040759,2]
[310992042,1704843042863,-200.0,0.00040766,20]
[310992044,1704843042873,-200.0,0.00040767,2]
[310992046,1704843042882,-1162.000002,0.0004077,2]
[310992048,1704843042891,-150.0,0.00040785,2]
[310992050,1704843042901,-156.06,0.00040785,2]
[310992052,1704843042910,-60059.35687887,0.00040798,61]
[310992054,1704843042919,-1000.0,0.000408,2]
[310992056,1704843042929,-1000.0,0.000408,2]
[310992058,1704843042938,-1000.0,0.000408,7]
[310992118,1704843043324,-150.0,0.00040805,2]
[310992122,1704843043349,-500.0,0.00040821,10]
[310992124,1704843043359,-456.4011,0.00040848,8]
[310992126,1704843043368,-800.0,0.00040862,10]
[310992128,1704843043377,-586.032175,0.00040865,2]
[310992130,1704843043387,-160.0,0.00040882,3]
[310992132,1704843043396,-200.0,0.00040885,15]
[310992134,1704843043405,-16000.0,0.00040891,3]
[310992136,1704843043414,-160.0,0.00040891,3]
[310992138,1704843043423,-500.0,0.00040894,4]
[310992140,1704843043432,-16000.0,0.000409,3]
[310992142,1704843043442,-160.0,0.000409,3]
[310992144,1704843043451,-48922.15191867,0.000409,5]
[310992147,1704843043466,-6632.84808133,0.000409,5]
[310992149,1704843043475,-227.92481117,0.00040901,2]
[310992151,1704843043484,-500.0,0.00040903,4]
[310992153,1704843043494,-500.0,0.00040912,4]
[310992155,1704843043503,-500.0,0.00040921,4]
[310992157,1704843043512,-500.0,0.0004093,4]
[310992159,1704843043521,-500.0,0.00040938,4]
[310992161,1704843043530,-500.0,0.00040947,4]
[310992163,1704843043540,-456.4011,0.00040948,8]
[310992165,1704843043549,-500.0,0.00040956,4]
[310992167,1704843043557,-200.0,0.00040957,20]
[310992169,1704843043567,-800.0,0.00040957,10]
[310992171,1704843043576,-500.0,0.00040965,4]
[310992173,1704843043585,-500.0,0.00040974,4]
[310992175,1704843043594,-500.0,0.00040982,4]
[310992177,1704843043604,-2223.0,0.0004099,3]
[310992179,1704843043613,-500.0,0.00040991,4]
[310992181,1704843043622,-1000.0,0.00040992,15]
[310992183,1704843043631,-2000.0,0.00040993,4]
[310992185,1704843043640,-593.03031411,0.00040997,2]
[310992187,1704843043650,-100000.0,0.00041,3]
[310992189,1704843043659,-8749.99,0.00041,5]
[310992191,1704843043668,-8750.0,0.00041,5]
[310992193,1704843043678,-600.0,0.00041,42]
[310992195,1704843043687,-500.0,0.00041,4]
[310992197,1704843043696,-8750.0,0.00041,5]
[310992199,1704843043705,-54276.05862357,0.00041,30]
[310992201,1704843043714,-8749.99,0.00041,5]
[310992203,1704843043723,-8750.0,0.00041,5]
[310992205,1704843043732,-8749.98,0.00041,5]
[310992207,1704843043742,-8749.99,0.00041,5]
[310992209,1704843043752,-5000.0,0.00041,60]
[310992211,1704843043762,-8749.99,0.00041,5]
[310992213,1704843043771,-8750.0,0.00041,5]
[310992215,1704843043780,-4325.0,0.00041,60]
[310992217,1704843043790,-4721.59,0.00041,5]
[310992219,1704843043799,-311108.39995235,0.00041,15]
[310992222,1704843043811,-4250.57805386,0.00041,15]
[310992226,1704843043843,-702.824154,0.00041,15]
[310992228,1704843043856,-1203.29076082,0.00041,15]
[310992231,1704843043868,-1235.6196983,0.00041,15]
[310992234,1704843043887,-1792.04521374,0.00041,15]
[310992236,1704843043899,-1076.31462604,0.00041,15]
[310992238,1704843043911,-761.89216963,0.00041,15]
[310992240,1704843043922,-365.80397817,0.00041,15]
[310992358,1704843045120,-701.66503495,0.00037208,2]
[310992360,1704843045132,-250.0,0.00037208,2]
[310992396,1704843045467,-700.43927189,0.00037208,2]
[310992401,1704843045492,-924.0444,0.00037208,2]
[310992406,1704843045534,-4827.93325751,0.00037208,2]
[310992409,1704843045545,-473.97100773,0.00038999,4]
[310992412,1704843045555,-384.17436948,0.00038999,4]
[310992428,1704843045640,-480.82461507,0.00038999,4]
[310992431,1704843045650,-500.0,0.00040886,4]
[310992434,1704843045659,-206.06769217,0.00040999,7]
[310992437,1704843045669,-164.64615835,0.00040999,7]
[310992440,1704843045678,-4462.5003347,0.00041,15]
[310992443,1704843045690,-3400.86013248,0.00041,15]
[310992447,1704843045701,-648.37714593,0.00041,15]
[310992452,1704843045719,-1021.80015306,0.00041,15]
[310992455,1704843045731,-667.79630865,0.00041,15]
[310992462,1704843045757,-465.2,0.00041,15]
[310992522,1704843046087,-2764.94,0.0003199,10]
[310992525,1704843046097,-499.99,0.00038735,2]
[310992527,1704843046106,-1029.97,0.00041,15]
[310992531,1704843046117,-2121.87615936,0.00041,15]
[310992534,1704843046128,-548.87967985,0.00041,15]
[310992573,1704843046417,-480.11657429,0.00041,15]
[310992575,1704843046428,-4381.6,0.00041,15]
[310992577,1704843046439,-972.39925064,0.00041,15]
[310992579,1704843046451,-346.98199227,0.00041,15]
[310992582,1704843046471,-316.11183262,0.00041,15]
[310992755,1704843047980,-283.7162531,0.00025,2]
[310992760,1704843047991,-280.84097529,0.00025,2]
[310992766,1704843048019,-280.21103288,0.00025,2]
[310992769,1704843048030,-736.48501665,0.00025,2]
[310992772,1704843048039,-179.99295609,0.00031989,4]
[310992775,1704843048050,-1297.13033065,0.00031989,4]
[310992849,1704843048835,-0.13945524,0.00031989,4]
[310992851,1704843048847,-1844.29124708,0.00031989,4]
[310992853,1704843048856,-3159.88023308,0.00038106,2]
[310992855,1704843048867,-2824.50000151,0.00038106,2]
[310992857,1704843048878,-1419.70172976,0.00038106,2]
[310992858,1704843048887,-318.0,0.00039996,2]
[310992860,1704843048896,-881.0,0.00040481,2]
[310992862,1704843048905,-36760.25658341,0.00041,15]
[310992868,1704843048978,-0.08222304,0.00041,15]
[310992877,1704843049075,-306.1997,0.00041,15]
[310992888,1704843049199,-2440.30931548,0.00041,15]
[310992890,1704843049214,-430.74475152,0.00041,15]
[310992893,1704843049225,-1042.06309658,0.00041,15]
[310993475,1704843182639,547.56502599,0.00022999,5]
[310993479,1704843594614,620.48589227,0.00021875,2]
[310993480,1704843607118,398.55872022,0.00021647,2]
[310993483,1704843674296,559.19420109,0.0002028,2]
[310993488,1704843801780,307.09,0.00022164,2]
[310993489,1704843932431,158.29,0.0002305,10]
[310993490,1704844036115,-217.57369478,0.00022647,2]
[310993491,1704844036142,-161.48271345,0.00022648,2]
[310993492,1704844036170,-2667.97127483,0.00022649,2]
[310993593,1704844086518,1000.0,0.00022899,5]
[310993607,1704844146127,-163.66921275,0.00022645,2]
[310993608,1704844146149,-155.0,0.00022645,2]
[310993609,1704844146169,-514.64597096,0.00022646,2]
[310993610,1704844146190,-2775.44187928,0.00022647,2]
[310993611,1704844146210,-150.0,0.00022786,2]
[310993612,1704844146228,-291.38726905,0.00022786,2]
[310993613,1704844146247,-161.27346096,0.00022786,2]
[310993614,1704844146267,-1767.99095544,0.00022787,2]
[310993615,1704844146289,-515.41,0.00022787,2]
[310993616,1704844146307,-14330.59847731,0.00022788,2]
[310993617,1704844146327,-2886.91353457,0.00022795,2]
[310993618,1704844146347,-196.37114886,0.00022796,2]
[310993619,1704844146366,-6759.16,0.00022796,2]
[310993620,1704844146384,-2482.74,0.00022796,2]
[310993621,1704844146405,-4478.13549686,0.00022797,2]
[310993622,1704844146428,-62238.72244388,0.00022798,2]
[310993623,1704844146448,-1000.0,0.000228,2]
[310993624,1704844146468,-500.0,0.000228,2]
[310993625,1704844146489,-14948.05015008,0.000228,2]
[310993628,1704844160124,164.36,0.00027204,120]
[310993629,1704844162114,-1077.70243106,0.00022646,2]
[310993630,1704844167162,-3186.82413987,0.00022646,2]
[310993631,1704844167182,-262.41286139,0.00022798,2]
[310993632,1704844167201,-255.47845057,0.00022798,2]
[310993633,1704844167220,-435.63014817,0.00022799,2]
[310993634,1704844173109,-3185.21463735,0.00022645,2]
[310993635,1704844173140,-2339.81173111,0.00022799,2]
[310993636,1704844173168,-169.70762186,0.00022799,2]
[310993637,1704844173194,-6882.23900968,0.000228,2]
[310993641,1704844188388,592.71420635,0.00021887,2]
[310993655,1704844231809,-700.0,0.00022698,2]
[310993656,1704844231821,-1095.0485,0.00022698,2]
[310993657,1704844231832,-500.0,0.000227,2]
[310993658,1704844231842,-688.81710418,0.00022798,2]
[310993659,1704844231852,-4259.01669385,0.00022799,2]
[310993660,1704844231862,-155106.91121314,0.000228,2]
[310993661,1704844231874,-291.718982,0.000228,2]
[310993662,1704844231896,-3618.7510238,0.000228,2]
[310993663,1704844231910,-484.10191491,0.000228,2]
[310993665,1704844231922,-282.64689268,0.000228,2]
[310993673,1704844232035,-1186.69011417,0.000228,2]
[310993674,1704844232047,-269.42731393,0.000228,2]
[310993675,1704844232058,-1129.24535294,0.000228,2]
[310993676,1704844232099,-60800.21803267,0.000228,2]
[310993677,1704844232110,-54891.68695441,0.000228,2]
[310993678,1704844232142,-4405.02909263,0.000228,2]
[310993687,1704844232209,-3581.40669,0.000228,2]
[310993707,1704844237817,-1130.88909021,0.000228,2]
[310993708,1704844237829,-473.3383626,0.000228,2]
[310993709,1704844237928,-8005.90960524,0.000228,2]
[310993710,1704844238037,-4223.37346589,0.000228,2]
[310993711,1704844238048,-260.20220687,0.000228,2]
[310993712,1704844238060,-1876.13823113,0.000228,2]
[310993714,1704844238268,-2930.06890102,0.000228,2]
[310993716,1704844238277,-610.51,0.00022945,2]
[310993718,1704844238286,-200.0,0.0002305,2]
[310993720,1704844238295,-500.0,0.00023183,2]
[310993722,1704844238304,-177.46,0.00023299,2]
[310993724,1704844238313,-159.7,0.00023351,2]
[310993726,1704844238322,-500.0,0.00023471,2]
[310993728,1704844238332,-417.63,0.0002361,2]
[310993730,1704844238341,-2577.68,0.00023744,2]
[310993732,1704844238350,-903.11,0.00023744,2]
[310993734,1704844238359,-159.7,0.00024405,2]
[310993736,1704844238368,-307.09,0.00024428,2]
[310993738,1704844238377,-273.1,0.0002451,2]
[310993740,1704844238386,-250.0,0.00024658,2]
[310993742,1704844238395,-1246.32796092,0.00025,2]
[310993744,1704844238404,-376.52347576,0.00025,2]
[310993746,1704844238413,-350.0,0.00025,3]
[310993748,1704844238423,-210.0,0.00025065,2]
[310993750,1704844238432,-175.3,0.00025236,2]
[310993752,1704844238441,-158.29,0.00025309,10]
[310993754,1704844238451,-156.82,0.00025361,2]
[310993756,1704844238460,-159.7,0.00025458,2]
[310993758,1704844238470,-203.0,0.00025509,2]
[310993760,1704844238479,-203.0,0.00025509,2]
[310993762,1704844238489,-150.0,0.00026079,2]
[310993764,1704844238499,-159.7,0.00026512,2]
[310993766,1704844238509,-3742.04,0.00026575,2]
[310993767,1704844238519,-307.09,0.00026692,2]
[310993768,1704844238528,-400.0,0.00027,3]
[310993769,1704844238536,-203.0,0.00027009,4]
[310993770,1704844238545,-200.0,0.00027123,2]
[310993771,1704844238555,-250.0,0.00027149,2]
[310993772,1704844238563,-150.0,0.00027163,2]
[310993773,1704844238572,-487.87,0.00027204,2]
[310993774,1704844238581,-8414.02,0.00027286,2]
[310993775,1704844238590,-250.0,0.00027397,2]
[310993776,1704844238599,-494.57,0.00027397,2]
[310993777,1704844238608,-500.0,0.00027397,2]
[310993778,1704844238617,-250.0,0.000274,2]
[310993779,1704844238626,-494.57,0.00027556,2]
[310993781,1704844238636,-159.7,0.00027566,2]
[310993783,1704844238645,-273.1,0.00027574,2]
[310993785,1704844238655,-494.57,0.00027714,2]
[310993787,1704844238664,-494.57,0.00027872,2]
[310993789,1704844238673,-202.635464,0.00028,2]
[310993791,1704844238682,-494.57,0.0002803,2]
[310993793,1704844238692,-494.57,0.00028189,2]
[310993795,1704844238701,-494.57,0.00028347,2]
[310993797,1704844238711,-494.57,0.00028505,2]
[310993799,1704844238720,-203.0,0.00028509,7]
[310993801,1704844238729,-159.7,0.0002862,2]
[310993803,1704844238739,-494.57,0.00028664,2]
[310993805,1704844238748,-494.57,0.00028822,2]
[310993808,1704844238764,-307.09,0.00028956,2]
[310993810,1704844238773,-450.0,0.00029,3]
[310993812,1704844238782,-170.18,0.00029587,2]
[310993814,1704844238792,-159.7,0.00029673,2]
[310993816,1704844238803,-29656.0,0.000297,2]
[310993818,1704844238812,-3509.0,0.000297,2]
[310993820,1704844238821,-150.0,0.000298,2]
[310993822,1704844238831,-155.0,0.0003,2]
[310993824,1704844238840,-18985.51868976,0.0003,4]
[310993826,1704844238850,-203.0,0.00030008,9]
[310993828,1704844238862,-450.0,0.0003002,3]
[310993830,1704844238873,-285.68297929,0.000301,4]
[310993832,1704844238883,-156.82,0.00030132,2]
[310993834,1704844238892,-153.84,0.00030137,2]
[310993836,1704844238902,-487.87,0.00030604,2]
[310993838,1704844238911,-273.1,0.00030637,2]
[310993840,1704844238920,-159.7,0.00030727,2]
[310993842,1704844238929,-159.44,0.00030871,2]
[310993844,1704844238939,-500.0,0.00031,3]
[310993847,1704844238949,-153.84,0.0003105,2]
[310993849,1704844238958,-307.09,0.00031219,2]
[310993851,1704844238968,-671.96251305,0.00031359,4]
[310993853,1704844238977,-173.05,0.00031486,2]
[310993855,1704844238987,-340.62,0.00031507,2]
[310993857,1704844238996,-203.0,0.00031508,12]
[310993859,1704844239007,-151.0,0.00031656,120]
[310993861,1704844239018,-9567.68,0.00031694,2]
[310993863,1704844239027,-159.7,0.00031781,2]
[310993865,1704844239037,-157.35,0.000318,2]
[310993867,1704844239046,-177160.41016,0.000318,2]
[310993869,1704844239055,-209.0,0.000319,2]
[310993871,1704844239065,-491.51047211,0.000319,4]
[310993873,1704844239075,-153.84,0.00031963,2]
[310993875,1704844239085,-200.42228208,0.00031997,2]
[310993877,1704844239095,-688444.33225814,0.00032,2]
[310993879,1704844239105,-150.0,0.00032,2]
[310993881,1704844239115,-487.424818,0.00032,4]
[310993883,1704844239124,-271.2747877,0.00032,2]
[310993885,1704844239133,-271.2747877,0.00032,2]
[310993887,1704844239143,-271.2747877,0.00032,2]
[310993889,1704844239152,-261.10253064,0.00032,2]
[310993891,1704844239162,-1802.90872975,0.00032,4]
[310993894,1704844239172,-297.1247831,0.00032,4]
[310993896,1704844239182,-243.66773906,0.00032283,2]
[310993898,1704844239191,-151.0,0.00032302,30]
[310993900,1704844239200,-155.0,0.000326,4]
[310993902,1704844239210,-159.7,0.00032835,2]
[310993904,1704844239219,-153.84,0.00032877,2]
[310993905,1704844239228,-692.36,0.00032877,15]
[310993908,1704844239238,-151.0,0.00032962,7]
[310993910,1704844239248,-550.0,0.00033,3]
[310993912,1704844239258,-1454.26218209,0.00033,5]
[310993914,1704844239267,-203.0,0.00033007,14]
[310993915,1704844239277,-417.63,0.00033054,2]
[310993918,1704844239287,-307.09,0.00033483,2]
[310993920,1704844239297,-1071.54,0.000335,2]
[310993922,1704844239307,-1071.54,0.000335,2]
[310993924,1704844239317,-1071.54,0.000335,2]
[310993926,1704844239327,-1071.54,0.000335,2]
[310993928,1704844239337,-1071.54,0.000335,2]
[310993930,1704844239347,-1071.54,0.000335,2]
[310993975,1704844239735,-1071.54,0.000335,2]
[310993978,1704844239759,-1071.54,0.000335,2]
[310993981,1704844239769,-1071.54,0.000335,2]
[310993983,1704844239778,-1071.54,0.000335,2]
[310993985,1704844239787,-1071.54,0.000335,2]
[310993987,1704844239796,-1071.54,0.000335,2]
[310993989,1704844239806,-1071.54,0.000335,2]
[310993991,1704844239815,-1071.54,0.000335,2]
[310993993,1704844239825,-1071.54,0.000335,2]
[310993995,1704844239834,-1071.54,0.000335,2]
[310993997,1704844239843,-1071.54,0.000335,2]
[310993999,1704844239853,-1071.54,0.000335,2]
[310994001,1704844239862,-1071.54,0.000335,2]
[310994003,1704844239872,-1071.54,0.000335,2]
[310994005,1704844239882,-151.0,0.00033634,4]
[310994007,1704844239892,-273.1,0.00033701,2]
[310994009,1704844239901,-159.44,0.00033775,2]
[310994011,1704844239911,-153.84,0.0003379,2]
[310994013,1704844239920,-159.7,0.00033888,2]
[310994015,1704844239929,-317.02935776,0.00033999,4]
[310994017,1704844239938,-1000.0,0.00034,4]
[310994019,1704844239948,-801.48193066,0.00034,4]
[310994021,1704844239957,-487.87,0.00034005,2]
[310994023,1704844239967,-151.0,0.00034321,2]
[310994025,1704844239976,-203.0,0.00034507,17]
[310994027,1704844239985,-493.77475,0.0003452,2]
[310994029,1704844239994,-634.85325,0.0003452,2]
[310994031,1704844240004,-2712.48,0.00034521,2]
[310994033,1704844240013,-180.0,0.00034658,2]
[310994035,1704844240022,-153.84,0.00034703,2]
[310994037,1704844240032,-340.62,0.00034703,2]
[310994039,1704844240041,-740.662126,0.00034794,2]
[310994041,1704844240051,-952.279876,0.00034794,2]
[310994044,1704844240060,-1065.87078496,0.000349,2]
[310994046,1704844240070,-1065.87078495,0.000349,2]
[310994048,1704844240079,-1065.87078495,0.000349,2]
[310994049,1704844240089,-987.549501,0.00034931,2]
[310994053,1704844240099,-1269.706501,0.00034931,2]
[310994055,1704844240108,-159.7,0.00034942,2]
[310994057,1704844240118,-346.6505486,0.0003498,3]
[310994059,1704844240127,-585.0,0.0003498,3]
[310994061,1704844240137,-501.04263988,0.0003498,3]
[310994063,1704844240146,-292.5,0.0003498,3]
[310994065,1704844240155,-155.33912068,0.00035,3]
[310994068,1704844240164,-600.0,0.00035,3]
[310994070,1704844240174,-157.35,0.00035,2]
[310994072,1704844240183,-157.35,0.00035,2]
[310994074,1704844240192,-2500.0,0.00035,2]
[310994076,1704844240202,-180774.66063044,0.00035,4]
[310994078,1704844240211,-617.90544107,0.00035,4]
[310994080,1704844240221,-155.0,0.00035,2]
[310994081,1704844240231,-426.43579538,0.00035,7]
[310994082,1704844240240,-16404.83531666,0.00035,2]
[310994084,1704844240250,-446.78845482,0.00035,4]
[310994086,1704844240261,-1234.436877,0.00035068,2]
[310994088,1704844240271,-1587.133127,0.00035068,2]
[310994090,1704844240280,-4608.98,0.0003522,10]
[310994092,1704844240290,-4184.0,0.0003523,30]
[310994094,1704844240299,-4184.0,0.0003523,60]
[310994096,1704844240309,-1728.211628,0.00035342,2]
[310994098,1704844240319,-2221.986378,0.00035342,2]
[310994100,1704844240328,-150.0,0.00035616,2]
[310994102,1704844240337,-300.0,0.00035616,7]
[310994104,1704844240346,-450.0,0.00035616,12]
[310994106,1704844240355,-600.0,0.00035616,17]
[310994108,1704844240365,-224.88280177,0.00035616,22]
[310994110,1704844240375,-967.152292,0.00035616,2]
[310994112,1704844240384,-153.84,0.00035616,2]
[310994114,1704844240393,-152.08,0.00035616,2]
[310994116,1704844240402,-1631.45962215,0.00035616,2]
[310994118,1704844240412,-307.09,0.00035747,2]
[310994120,1704844240421,-2712.48,0.00035798,2]
[310994122,1704844240430,-967.152292,0.00035865,2]
[310994124,1704844240440,-181.0,0.00035938,2]
[310994126,1704844240449,-159.7,0.00035996,2]
[310994128,1704844240458,-92188.34675349,0.00036,4]
[310994130,1704844240468,-203.0,0.00036006,19]
[310994133,1704844240478,-567.4011,0.00036048,6]
[310994135,1704844240487,-161.72403565,0.00036089,2]
[310994137,1704844240496,-161.72403562,0.00036089,2]
[310994139,1704844240505,-161.72403562,0.00036089,2]
[310994140,1704844240514,-161.72403562,0.00036089,2]
[310994142,1704844240524,-161.72403562,0.00036089,2]
[310994144,1704844240533,-161.72403562,0.00036089,2]
[310994146,1704844240543,-161.72403562,0.00036089,2]
[310994148,1704844240553,-1944.977054,0.000361,23]
[310994151,1704844240563,-967.152292,0.00036114,2]
[310994153,1704844240572,-1158.79532186,0.0003614,8]
[310994155,1704844240582,-567.4011,0.00036148,6]
[310994157,1704844240591,-151.38524979,0.0003623,30]
[310994159,1704844240601,-150.0,0.0003623,30]
[310994160,1704844240611,-567.4011,0.00036248,6]
[310994162,1704844240621,-155.0,0.000363,2]
[310994164,1704844240630,-1071.54,0.000363,3]
[310994166,1704844240639,-1071.54,0.000363,3]
[310994168,1704844240648,-1071.54,0.000363,3]
[310994170,1704844240658,-1071.54,0.000363,3]
[310994172,1704844240668,-1071.54,0.000363,3]
[310994175,1704844240677,-1071.54,0.000363,3]
[310994177,1704844240687,-1071.54,0.000363,3]
[310994179,1704844240697,-1071.54,0.000363,3]
[310994181,1704844240706,-1071.54,0.000363,3]
[310994183,1704844240715,-1071.54,0.000363,3]
[310994185,1704844240724,-1071.54,0.000363,3]
[310994187,1704844240733,-1071.54,0.000363,3]
[310994189,1704844240743,-1071.54,0.000363,3]
[310994191,1704844240752,-1071.54,0.000363,3]
[310994192,1704844240762,-1071.54,0.000363,3]
[310994194,1704844240775,-1071.54,0.000363,3]
[310994197,1704844240785,-1071.54,0.000363,3]
[310994199,1704844240795,-1071.54,0.000363,3]
[310994200,1704844240805,-1071.54,0.000363,3]
[310994202,1704844240815,-1071.54,0.000363,3]
[310994205,1704844240824,-567.4011,0.00036348,6]
[310994206,1704844240834,-967.152292,0.00036363,2]
[310994209,1704844240845,-1065.87078495,0.00036424,2]
[310994211,1704844240855,-166.82,0.00036438,2]
[310994213,1704844240866,-166.82,0.00036438,46]
[310994215,1704844240876,-166.82,0.00036438,90]
[310994217,1704844240886,-567.4011,0.00036448,6]
[310994218,1704844240895,-153.84,0.0003653,2]
[310994221,1704844240905,-567.4011,0.00036548,6]
[310994223,1704844240915,-1500.0,0.000366,23]
[310994225,1704844240924,-967.152292,0.00036612,2]
[310994227,1704844240933,-692.36,0.00036613,15]
[310994228,1704844240943,-567.4011,0.00036648,6]
[310994230,1704844240952,-159.44,0.00036679,2]
[310994232,1704844240961,-567.4011,0.00036748,6]
[310994234,1704844240971,-273.1,0.00036765,2]
[310994235,1704844240980,-567.4011,0.00036848,6]
[310994236,1704844240989,-967.152292,0.00036861,2]
[310994237,1704844240998,-567.4011,0.00036948,6]
[310994238,1704844241008,-1000.0,0.00036986,2]
[310994239,1704844241017,-1000.0,0.00036986,2]
[310994240,1704844241028,-667.33870884,0.00037,7]
[310994241,1704844241038,-6907.0344694,0.00037,10]
[310994242,1704844241047,-650.0,0.00037,3]
[310994243,1704844241056,-345.91472599,0.00037,120]
[310994244,1704844241066,-209.51916391,0.00037,30]
[310994245,1704844241076,-567.4011,0.00037048,6]
[310994246,1704844241085,-159.7,0.0003705,2]
[310994247,1704844241095,-2712.48,0.00037075,2]
[310994249,1704844241104,-1500.0,0.000371,23]
[310994251,1704844241113,-276.431819,0.000371,2]
[310994253,1704844241122,-967.152292,0.0003711,2]
[310994255,1704844241131,-500.0,0.00037141,120]
[310994257,1704844241141,-3180.6266193,0.00037141,30]
[310994259,1704844241151,-1965.399855,0.00037141,30]
[310994261,1704844241160,-1937.236888,0.00037141,30]
[310994263,1704844241170,-304.856372,0.00037141,30]
[310994265,1704844241180,-567.4011,0.00037148,6]
[310994268,1704844241192,-3872.76733798,0.00037206,4]
[310994270,1704844241202,-1175.49036383,0.00037207,4]
[310994272,1704844241211,-363.3248794,0.00037207,4]
[310994274,1704844241221,-302.57664433,0.00037207,4]
[310994276,1704844241230,-567.4011,0.00037248,6]
[310994278,1704844241239,-161.72403562,0.00037249,2]
[310994280,1704844241249,-1000.0,0.0003726,4]
[310994282,1704844241260,-1000.0,0.0003726,4]
[310994284,1704844241269,-567.4011,0.00037348,6]
[310994286,1704844241278,-967.152292,0.00037358,2]
[310994288,1704844241288,-152.66700614,0.00037403,7]
[310994290,1704844241297,-487.87,0.00037405,2]
[310994292,1704844241306,-153.84,0.00037443,2]
[310994294,1704844241315,-567.4011,0.00037448,6]
[310994296,1704844241325,-203.0,0.00037506,22]
[310994298,1704844241335,-1000.0,0.00037534,6]
[310994300,1704844241344,-1000.0,0.00037534,6]
[310994302,1704844241353,-243.66773844,0.00037537,2]
[310994304,1704844241362,-567.4011,0.00037548,6]
[310994306,1704844241371,-967.152292,0.00037607,2]
[310994308,1704844241380,-6396.00868996,0.00037618,8]
[310994310,1704844241389,-434.9738942,0.00037618,5]
[310994312,1704844241398,-500.0,0.00037618,5]
[310994314,1704844241407,-1000.0,0.00037618,10]